[Event "*** Titled Tuesday Blitz"]
[Site "Chess.com"]
[Date "2020.11.10"]
[Round "6"]
[White "kuban1991"]
[Black "RaunakSadhwani2005"]
[Result "0-1"]
[WhiteElo "2885"]
[BlackElo "2998"]
[TimeControl "180+1"]
[EndTime "11:10:43 PST"]
[Termination "RaunakSadhwani2005 won by resignation"]

1. Nf3 {[%clk 0:02:59.7]} 1... d5 {[%clk 0:02:59.4]} 2. g3 {[%clk 0:02:59.8]}
2... Nc6 {[%clk 0:02:59.5]} 3. d4 {[%clk 0:02:59.7]} 3... Bf5 {[%clk 0:02:57.6]}
4. Bg2 {[%clk 0:03:00]} 4... Nb4 {[%clk 0:02:56.1]} 5. Na3 {[%clk 0:03:00.1]}
5... e6 {[%clk 0:02:54.4]} 6. O-O {[%clk 0:02:59.8]} 6... Be7 {[%clk 0:02:52.5]}
7. c3 {[%clk 0:02:59]} 7... Nc6 {[%clk 0:02:50.5]} 8. Qb3 {[%clk 0:02:59.6]}
8... Rb8 {[%clk 0:02:47.4]} 9. Qa4 {[%clk 0:02:59.4]} 9... Qd7 {[%clk
0:02:44.1]} 10. h3 {[%clk 0:02:50.8]} 10... Nf6 {[%clk 0:02:42]} 11. Bg5 {[%clk
0:02:50.6]} 11... O-O {[%clk 0:02:34.4]} 12. Bxf6 {[%clk 0:02:50.6]} 12... Bxf6
{[%clk 0:02:31.8]} 13. Nd2 {[%clk 0:02:51]} 13... b5 {[%clk 0:02:16.3]} 14. Qd1
{[%clk 0:02:38.9]} 14... b4 {[%clk 0:02:16.3]} 15. Nc2 {[%clk 0:02:31]} 15...
bxc3 {[%clk 0:02:16.7]} 16. bxc3 {[%clk 0:02:31.9]} 16... Rb2 {[%clk 0:02:14.2]}
17. e4 {[%clk 0:02:28.5]} 17... dxe4 {[%clk 0:02:09.4]} 18. Nxe4 {[%clk
0:02:29.4]} 18... Bxe4 {[%clk 0:02:05.5]} 19. Bxe4 {[%clk 0:02:30.3]} 19... Ne7
{[%clk 0:02:03.9]} 20. Ne3 {[%clk 0:02:29]} 20... Nd5 {[%clk 0:01:59.8]} 21. Qd3
{[%clk 0:02:19.1]} 21... g6 {[%clk 0:01:50.4]} 22. Ng4 {[%clk 0:02:01.6]} 22...
Bg7 {[%clk 0:01:47.6]} 23. Ne5 {[%clk 0:02:02]} 23... Bxe5 {[%clk 0:01:33.7]}
24. dxe5 {[%clk 0:02:02.9]} 24... Nb6 {[%clk 0:01:28.7]} 25. Rfb1 {[%clk
0:01:47.6]} 25... Rd2 {[%clk 0:01:16]} 26. Qxd7 {[%clk 0:01:35.8]} 26... Nxd7
{[%clk 0:01:16.9]} 27. Rb7 {[%clk 0:01:33]} 27... Nc5 {[%clk 0:01:16.7]} 28. Rb4
{[%clk 0:01:31.8]} 28... Re2 {[%clk 0:01:10.2]} 29. Bc6 {[%clk 0:01:31]} 29...
Rxe5 {[%clk 0:01:05.1]} 30. Rd1 {[%clk 0:01:28.4]} 30... g5 {[%clk 0:00:58]} 31.
Rc4 {[%clk 0:01:27]} 31... Rb8 {[%clk 0:00:51.6]} 32. f4 {[%clk 0:01:09.3]}
32... gxf4 {[%clk 0:00:52.5]} 33. gxf4 {[%clk 0:01:10.2]} 33... Rf5 {[%clk
0:00:49.1]} 34. Rd2 {[%clk 0:01:05]} 34... Rb6 {[%clk 0:00:46.9]} 35. Bf3 {[%clk
0:01:01.7]} 35... Rd6 {[%clk 0:00:47.1]} 36. Rdd4 {[%clk 0:00:55.7]} 36... Rxd4
{[%clk 0:00:32]} 37. cxd4 {[%clk 0:00:56.6]} 37... Rxf4 {[%clk 0:00:27.5]} 38.
Kf2 {[%clk 0:00:50.9]} 38... Ne4+ {[%clk 0:00:17]} 39. Ke3 {[%clk 0:00:50.7]}
39... Rxf3+ {[%clk 0:00:17.9]} 40. Kxe4 {[%clk 0:00:51.6]} 40... Rxh3 {[%clk
0:00:17.8]} 41. Rxc7 {[%clk 0:00:52.3]} 41... Ra3 {[%clk 0:00:15]} 42. Rc2
{[%clk 0:00:52.1]} 42... Ra5 {[%clk 0:00:14.7]} 43. Rg2+ {[%clk 0:00:49.9]}
43... Kf8 {[%clk 0:00:14.8]} 44. Rh2 {[%clk 0:00:50.5]} 44... h5 {[%clk
0:00:15.3]} 45. Rg2 {[%clk 0:00:46.2]} 45... Rf5 {[%clk 0:00:13.6]} 46. Rb2
{[%clk 0:00:45.4]} 46... Kg7 {[%clk 0:00:12.8]} 47. Rg2+ {[%clk 0:00:42.9]}
47... Kf6 {[%clk 0:00:12.9]} 48. Rh2 {[%clk 0:00:43.4]} 48... Kg6 {[%clk
0:00:12]} 49. Rg2+ {[%clk 0:00:42.8]} 49... Rg5 {[%clk 0:00:12.5]} 50. Rf2
{[%clk 0:00:43.1]} 50... h4 {[%clk 0:00:12.4]} 51. Rh2 {[%clk 0:00:40.2]} 51...
Rh5 {[%clk 0:00:12]} 52. Kf4 {[%clk 0:00:40.8]} 52... h3 {[%clk 0:00:12]} 53.
Kg4 {[%clk 0:00:41]} 53... Rh8 {[%clk 0:00:12.5]} 54. a4 {[%clk 0:00:39.9]}
54... a5 {[%clk 0:00:12.3]} 55. Kf4 {[%clk 0:00:37.8]} 55... Kf6 {[%clk
0:00:12.4]} 56. Kg4 {[%clk 0:00:37.4]} 56... Ke7 {[%clk 0:00:13]} 57. Kf4 {[%clk
0:00:32.2]} 57... Kd6 {[%clk 0:00:13]} 58. Ke4 {[%clk 0:00:33.1]} 58... Rh4+
{[%clk 0:00:12.5]} 59. Kd3 {[%clk 0:00:33.4]} 59... Kd5 {[%clk 0:00:13.4]} 60.
Kc3 {[%clk 0:00:33.7]} 60... f5 {[%clk 0:00:12.1]} 0-1

[Event "*** Titled Tuesday Blitz"]
[Site "Chess.com"]
[Date "2020.11.10"]
[Round "6"]
[White "dosto07"]
[Black "cottage_cheese"]
[Result "1-0"]
[WhiteElo "2329"]
[BlackElo "2165"]
[TimeControl "180+1"]
[EndTime "11:10:44 PST"]
[Termination "dosto07 won by checkmate"]

1. e4 {[%clk 0:03:00.9]} 1... e5 {[%clk 0:02:59.1]} 2. Nf3 {[%clk 0:02:59.8]}
2... Nc6 {[%clk 0:02:59.6]} 3. Bb5 {[%clk 0:02:58.9]} 3... a6 {[%clk 0:02:59.6]}
4. Ba4 {[%clk 0:02:56.4]} 4... Nf6 {[%clk 0:02:59.8]} 5. O-O {[%clk 0:02:54.9]}
5... Be7 {[%clk 0:02:58.3]} 6. d3 {[%clk 0:02:54.6]} 6... b5 {[%clk 0:02:51.2]}
7. Bb3 {[%clk 0:02:54.4]} 7... d6 {[%clk 0:02:45]} 8. Bd2 {[%clk 0:02:53.5]}
8... O-O {[%clk 0:02:42]} 9. h3 {[%clk 0:02:52.1]} 9... Bd7 {[%clk 0:02:06.4]}
10. Re1 {[%clk 0:02:50.3]} 10... Qc8 {[%clk 0:01:41.2]} 11. Kh2 {[%clk
0:02:41.2]} 11... Be6 {[%clk 0:01:39]} 12. Nc3 {[%clk 0:02:37.9]} 12... Bxb3
{[%clk 0:01:34.5]} 13. axb3 {[%clk 0:02:36.8]} 13... Re8 {[%clk 0:01:31.5]} 14.
Bg5 {[%clk 0:02:36.1]} 14... h6 {[%clk 0:01:29.5]} 15. Bxf6 {[%clk 0:02:34.8]}
15... Bxf6 {[%clk 0:01:28]} 16. Nd5 {[%clk 0:02:35.7]} 16... Be7 {[%clk
0:01:23.3]} 17. b4 {[%clk 0:02:33.6]} 17... Bf8 {[%clk 0:01:21.1]} 18. c3 {[%clk
0:02:33.4]} 18... Ne7 {[%clk 0:01:12.5]} 19. Qb3 {[%clk 0:02:29.4]} 19... Nxd5
{[%clk 0:01:07.6]} 20. Qxd5 {[%clk 0:02:24.6]} 20... c6 {[%clk 0:01:07.4]} 21.
Qb3 {[%clk 0:02:24.5]} 21... Qc7 {[%clk 0:01:02.1]} 22. Kh1 {[%clk 0:02:20.9]}
22... a5 {[%clk 0:01:00.5]} 23. bxa5 {[%clk 0:02:13.6]} 23... Rxa5 {[%clk
0:01:01.4]} 24. Rxa5 {[%clk 0:02:10.8]} 24... Qxa5 {[%clk 0:01:02.3]} 25. d4
{[%clk 0:02:09.3]} 25... exd4 {[%clk 0:00:48.9]} 26. cxd4 {[%clk 0:02:08.9]}
26... Ra8 {[%clk 0:00:45.6]} 27. e5 {[%clk 0:02:05.2]} 27... Qa2 {[%clk
0:00:41.8]} 28. Qc2 {[%clk 0:01:55.5]} 28... Qd5 {[%clk 0:00:41]} 29. Rc1 {[%clk
0:01:51.4]} 29... Ra6 {[%clk 0:00:35.7]} 30. Re1 {[%clk 0:01:41.7]} 30... c5
{[%clk 0:00:28.8]} 31. dxc5 {[%clk 0:01:38.2]} 31... dxc5 {[%clk 0:00:28.1]} 32.
Qe2 {[%clk 0:01:31.9]} 32... c4 {[%clk 0:00:26.2]} 33. Rd1 {[%clk 0:01:28.9]}
33... Qc5 {[%clk 0:00:25]} 34. Qe4 {[%clk 0:01:16.6]} 34... b4 {[%clk
0:00:23.5]} 35. Nd4 {[%clk 0:01:13.5]} 35... c3 {[%clk 0:00:21.2]} 36. bxc3
{[%clk 0:01:12.8]} 36... bxc3 {[%clk 0:00:21.1]} 37. e6 {[%clk 0:01:13.1]} 37...
fxe6 {[%clk 0:00:19.6]} 38. Nxe6 {[%clk 0:01:11.1]} 38... c2 {[%clk 0:00:11.1]}
39. Rc1 {[%clk 0:01:02.9]} 39... Ra1 {[%clk 0:00:06.7]} 40. Rxa1 {[%clk
0:00:59]} 40... c1=Q+ {[%clk 0:00:07.6]} 41. Rxc1 {[%clk 0:00:57.4]} 41... Qxc1+
{[%clk 0:00:08.5]} 42. Kh2 {[%clk 0:00:57.6]} 42... Bd6+ {[%clk 0:00:08.8]} 43.
g3 {[%clk 0:00:57.4]} 43... Qd2 {[%clk 0:00:07]} 44. Kg2 {[%clk 0:00:56.1]}
44... Qc3 {[%clk 0:00:04.6]} 45. h4 {[%clk 0:00:54.7]} 45... Qe5 {[%clk
0:00:04.4]} 46. Qc4 {[%clk 0:00:47.6]} 46... Kh7 {[%clk 0:00:03.3]} 47. Nf4
{[%clk 0:00:41.6]} 47... Qf5 {[%clk 0:00:02.6]} 48. Ne6 {[%clk 0:00:29.3]} 48...
Be5 {[%clk 0:00:03]} 49. Qd5 {[%clk 0:00:23]} 49... Qf6 {[%clk 0:00:03.4]} 50.
h5 {[%clk 0:00:20.2]} 50... Bb2 {[%clk 0:00:04.3]} 51. Qe4+ {[%clk 0:00:19.1]}
51... g6 {[%clk 0:00:03.4]} 52. hxg6+ {[%clk 0:00:17]} 52... Qxg6 {[%clk
0:00:04.3]} 53. Nf8+ {[%clk 0:00:16.3]} 53... Kg7 {[%clk 0:00:04.1]} 54. Qxg6+
{[%clk 0:00:16.9]} 54... Kxf8 {[%clk 0:00:02.7]} 55. Qxh6+ {[%clk 0:00:17.4]}
55... Bg7 {[%clk 0:00:02.6]} 56. Qg6 {[%clk 0:00:17]} 56... Kg8 {[%clk
0:00:02.9]} 57. Kf3 {[%clk 0:00:17.4]} 57... Kh8 {[%clk 0:00:03.8]} 58. Ke4
{[%clk 0:00:17.6]} 58... Kg8 {[%clk 0:00:04.7]} 59. Kf5 {[%clk 0:00:17.9]} 59...
Kh8 {[%clk 0:00:05.6]} 60. Ke6 {[%clk 0:00:18]} 60... Kg8 {[%clk 0:00:06.5]} 61.
f4 {[%clk 0:00:18]} 61... Kh8 {[%clk 0:00:07.4]} 62. f5 {[%clk 0:00:18.2]} 62...
Kg8 {[%clk 0:00:08.3]} 63. f6 {[%clk 0:00:18.1]} 63... Kh8 {[%clk 0:00:09.2]}
64. Qxg7# {[%clk 0:00:17.8]} 1-0

[Event "*** Titled Tuesday Blitz"]
[Site "Chess.com"]
[Date "2020.11.10"]
[Round "6"]
[White "Shushik"]
[Black "DishonorOnYourCow"]
[Result "1-0"]
[WhiteElo "2244"]
[BlackElo "2378"]
[TimeControl "180+1"]
[EndTime "11:10:52 PST"]
[Termination "Shushik won on time"]

1. e4 {[%clk 0:03:00.9]} 1... c5 {[%clk 0:02:56]} 2. Ne2 {[%clk 0:03:00.6]} 2...
d6 {[%clk 0:02:55.5]} 3. g3 {[%clk 0:03:00.5]} 3... a6 {[%clk 0:02:53.9]} 4. Bg2
{[%clk 0:02:59.3]} 4... g6 {[%clk 0:02:53.3]} 5. c3 {[%clk 0:02:56.5]} 5... Bg7
{[%clk 0:02:52.1]} 6. d4 {[%clk 0:02:56.4]} 6... cxd4 {[%clk 0:02:52.2]} 7. cxd4
{[%clk 0:02:56.4]} 7... Nf6 {[%clk 0:02:52.8]} 8. Nbc3 {[%clk 0:02:56.3]} 8...
O-O {[%clk 0:02:52.6]} 9. O-O {[%clk 0:02:56.3]} 9... Nc6 {[%clk 0:02:51.5]} 10.
h3 {[%clk 0:02:56.4]} 10... Bd7 {[%clk 0:02:42.5]} 11. Be3 {[%clk 0:02:55.8]}
11... b5 {[%clk 0:02:41.5]} 12. a3 {[%clk 0:02:30.9]} 12... Rc8 {[%clk
0:02:35.6]} 13. Rc1 {[%clk 0:02:26.5]} 13... Na5 {[%clk 0:02:33.1]} 14. b3
{[%clk 0:02:23]} 14... Rb8 {[%clk 0:02:18.2]} 15. f4 {[%clk 0:01:56.4]} 15... b4
{[%clk 0:02:13.5]} 16. axb4 {[%clk 0:01:56.2]} 16... Rxb4 {[%clk 0:02:14.4]} 17.
Rb1 {[%clk 0:01:46.3]} 17... Qb8 {[%clk 0:02:11.3]} 18. e5 {[%clk 0:01:43.3]}
18... Ne8 {[%clk 0:01:46]} 19. Nd5 {[%clk 0:01:31.8]} 19... Rxb3 {[%clk
0:01:44.6]} 20. Nxe7+ {[%clk 0:01:31.5]} 20... Kh8 {[%clk 0:01:44.4]} 21. Qc2
{[%clk 0:01:27.7]} 21... dxe5 {[%clk 0:01:39.4]} 22. dxe5 {[%clk 0:01:22.9]}
22... Be6 {[%clk 0:01:30.1]} 23. Nd5 {[%clk 0:01:07.7]} 23... f6 {[%clk
0:01:04.1]} 24. Rxb3 {[%clk 0:01:04.5]} 24... Qxb3 {[%clk 0:01:00.5]} 25. Qxb3
{[%clk 0:01:04.2]} 25... Nxb3 {[%clk 0:01:01.4]} 26. Rb1 {[%clk 0:01:02.1]}
26... Na5 {[%clk 0:00:57.3]} 27. Bc5 {[%clk 0:00:55.3]} 27... Rg8 {[%clk
0:00:26.9]} 28. Nd4 {[%clk 0:00:54.1]} 28... Bd7 {[%clk 0:00:17.7]} 29. e6
{[%clk 0:00:52.9]} 29... Bc6 {[%clk 0:00:12.6]} 30. Ne7 {[%clk 0:00:50.9]} 30...
Bxg2 {[%clk 0:00:12.6]} 31. Nxg8 {[%clk 0:00:48.7]} 31... Be4 {[%clk 0:00:11.3]}
32. Re1 {[%clk 0:00:46.6]} 32... Kxg8 {[%clk 0:00:05.6]} 33. Rxe4 {[%clk
0:00:45.8]} 33... f5 {[%clk 0:00:06.5]} 34. Re1 {[%clk 0:00:44.5]} 34... Nb7
{[%clk 0:00:06.9]} 35. Bb6 {[%clk 0:00:43.5]} 35... Ned6 {[%clk 0:00:06.5]} 36.
Nc6 {[%clk 0:00:39]} 36... Ne4 {[%clk 0:00:06.3]} 37. Bd4 {[%clk 0:00:35.5]}
37... Bxd4+ {[%clk 0:00:03.9]} 38. Nxd4 {[%clk 0:00:35.4]} 38... Kf8 {[%clk
0:00:04.8]} 39. Kg2 {[%clk 0:00:35]} 39... Ke7 {[%clk 0:00:04.7]} 40. Ra1 {[%clk
0:00:34.2]} 40... Nbc5 {[%clk 0:00:05.1]} 41. Ra5 {[%clk 0:00:29.2]} 41... Kd6
{[%clk 0:00:03.7]} 42. g4 {[%clk 0:00:24.8]} 42... Ke7 {[%clk 0:00:03.7]} 43.
gxf5 {[%clk 0:00:24.3]} 43... gxf5 {[%clk 0:00:04.3]} 44. Nxf5+ {[%clk
0:00:24.2]} 44... Kxe6 {[%clk 0:00:05.2]} 45. Nd4+ {[%clk 0:00:24]} 45... Kd5
{[%clk 0:00:05.1]} 46. Nb3 {[%clk 0:00:22.7]} 46... Kc4 {[%clk 0:00:05.2]} 47.
Nxc5 {[%clk 0:00:22.7]} 47... Nxc5 {[%clk 0:00:05.9]} 48. f5 {[%clk 0:00:22.5]}
48... Kb4 {[%clk 0:00:06]} 49. Ra1 {[%clk 0:00:21.9]} 49... a5 {[%clk
0:00:05.4]} 50. f6 {[%clk 0:00:22.1]} 50... a4 {[%clk 0:00:04.7]} 51. f7 {[%clk
0:00:22.2]} 51... Ne6 {[%clk 0:00:05.1]} 52. Kf3 {[%clk 0:00:21.8]} 52... Kb3
{[%clk 0:00:04]} 53. Kg4 {[%clk 0:00:21.6]} 53... a3 {[%clk 0:00:04.4]} 54. Kf5
{[%clk 0:00:21.4]} 54... Nf8 {[%clk 0:00:03.5]} 55. Kf6 {[%clk 0:00:20.7]} 55...
Kb2 {[%clk 0:00:03.1]} 56. Re1 {[%clk 0:00:20.5]} 56... a2 {[%clk 0:00:03.5]}
57. Ke7 {[%clk 0:00:20.4]} 57... Ng6+ {[%clk 0:00:03.1]} 58. Kf6 {[%clk
0:00:20]} 58... a1=Q {[%clk 0:00:04]} 59. Rxa1 {[%clk 0:00:19.2]} 59... Kxa1
{[%clk 0:00:04.9]} 60. h4 {[%clk 0:00:19.1]} 60... Kb2 {[%clk 0:00:02.7]} 61. h5
{[%clk 0:00:19.2]} 61... Nf8 {[%clk 0:00:02.3]} 62. Ke7 {[%clk 0:00:19.3]} 1-0

[Event "*** Titled Tuesday Blitz"]
[Site "Chess.com"]
[Date "2020.11.10"]
[Round "6"]
[White "FormerProdigy"]
[Black "Jospem"]
[Result "1/2-1/2"]
[WhiteElo "2875"]
[BlackElo "2923"]
[TimeControl "180+1"]
[EndTime "11:10:55 PST"]
[Termination "Game drawn by repetition"]

1. e4 {[%clk 0:03:00.9]} 1... e5 {[%clk 0:02:55.9]} 2. Nf3 {[%clk 0:03:00.8]}
2... Nc6 {[%clk 0:02:55.8]} 3. Bc4 {[%clk 0:03:00.6]} 3... Bc5 {[%clk
0:02:55.2]} 4. c3 {[%clk 0:03:00.4]} 4... Nf6 {[%clk 0:02:55.2]} 5. d3 {[%clk
0:03:00.8]} 5... d6 {[%clk 0:02:55]} 6. a4 {[%clk 0:03:00.1]} 6... a5 {[%clk
0:02:54.9]} 7. Bg5 {[%clk 0:02:59.7]} 7... h6 {[%clk 0:02:51.6]} 8. Bh4 {[%clk
0:02:59.6]} 8... O-O {[%clk 0:02:46.1]} 9. Na3 {[%clk 0:02:47.7]} 9... g5 {[%clk
0:02:44.3]} 10. Bg3 {[%clk 0:02:47.5]} 10... Bg4 {[%clk 0:02:44.3]} 11. h4
{[%clk 0:02:17.9]} 11... d5 {[%clk 0:01:12.2]} 12. hxg5 {[%clk 0:01:53.4]} 12...
hxg5 {[%clk 0:00:51.7]} 13. Qd2 {[%clk 0:01:23.6]} 13... Nxe4 {[%clk 0:00:51.4]}
14. dxe4 {[%clk 0:01:23.3]} 14... dxc4 {[%clk 0:00:51.9]} 15. Qxd8 {[%clk
0:00:45]} 15... Raxd8 {[%clk 0:00:50.2]} 16. Nxe5 {[%clk 0:00:45.9]} 16... Nxe5
{[%clk 0:00:42.7]} 17. Bxe5 {[%clk 0:00:46.8]} 17... f6 {[%clk 0:00:31.4]} 18.
Bxc7 {[%clk 0:00:46.1]} 18... Bxa3 {[%clk 0:00:17.7]} 19. bxa3 {[%clk
0:00:41.3]} 19... Rd3 {[%clk 0:00:14]} 20. Bxa5 {[%clk 0:00:37.3]} 20... Ra8
{[%clk 0:00:13.1]} 21. Bb4 {[%clk 0:00:36.1]} 21... Rxa4 {[%clk 0:00:12.7]} 22.
f3 {[%clk 0:00:34.9]} 22... Be6 {[%clk 0:00:12.4]} 23. Kf2 {[%clk 0:00:24.2]}
23... Rd2+ {[%clk 0:00:12.5]} 24. Kg3 {[%clk 0:00:20.2]} 24... Kg7 {[%clk
0:00:12.8]} 25. Rad1 {[%clk 0:00:19.3]} 25... Rd3 {[%clk 0:00:11.8]} 26. Rxd3
{[%clk 0:00:15.4]} 26... cxd3 {[%clk 0:00:12.7]} 27. Kf2 {[%clk 0:00:15.8]}
27... Ra8 {[%clk 0:00:08.6]} 28. Ke3 {[%clk 0:00:15.8]} 28... Rd8 {[%clk
0:00:09.1]} 29. Kd2 {[%clk 0:00:14]} 29... b5 {[%clk 0:00:06.3]} 30. Bc5 {[%clk
0:00:12.4]} 30... Kg6 {[%clk 0:00:04.6]} 31. Rb1 {[%clk 0:00:09.1]} 31... Bc4
{[%clk 0:00:04.9]} 32. Rb4 {[%clk 0:00:09.3]} 32... Rc8 {[%clk 0:00:05.4]} 33.
Be3 {[%clk 0:00:07.9]} 33... Ra8 {[%clk 0:00:06]} 34. a4 {[%clk 0:00:06.7]}
34... Rxa4 {[%clk 0:00:05.8]} 35. Rxa4 {[%clk 0:00:07.1]} 35... bxa4 {[%clk
0:00:06.7]} 36. Bc5 {[%clk 0:00:07.3]} 36... f5 {[%clk 0:00:07]} 37. exf5+
{[%clk 0:00:07.2]} 37... Kxf5 {[%clk 0:00:07.9]} 38. Ke3 {[%clk 0:00:07.4]}
38... g4 {[%clk 0:00:07.2]} 39. fxg4+ {[%clk 0:00:06.6]} 39... Kxg4 {[%clk
0:00:08.1]} 40. Bd6 {[%clk 0:00:06.8]} 40... Kf5 {[%clk 0:00:06.5]} 41. Bb4
{[%clk 0:00:06.5]} 41... Ke5 {[%clk 0:00:06.3]} 42. Ba3 {[%clk 0:00:05.8]} 42...
Bb5 {[%clk 0:00:05.8]} 43. g3 {[%clk 0:00:04]} 43... Kd5 {[%clk 0:00:06.2]} 44.
g4 {[%clk 0:00:03.1]} 44... Kc4 {[%clk 0:00:06.8]} 45. Kd2 {[%clk 0:00:02.7]}
45... Kb3 {[%clk 0:00:07]} 46. Bd6 {[%clk 0:00:01.9]} 46... a3 {[%clk
0:00:06.1]} 47. c4 {[%clk 0:00:01.6]} 47... Bxc4 {[%clk 0:00:03.1]} 48. Be5
{[%clk 0:00:01.9]} 48... Bb5 {[%clk 0:00:02.7]} 49. g5 {[%clk 0:00:02.6]} 49...
Kc4 {[%clk 0:00:03.2]} 50. g6 {[%clk 0:00:02.4]} 50... Be8 {[%clk 0:00:03.9]}
51. g7 {[%clk 0:00:02.8]} 51... Bf7 {[%clk 0:00:04.5]} 52. Bf6 {[%clk 0:00:03]}
52... Bg8 {[%clk 0:00:04.9]} 53. Be5 {[%clk 0:00:03.1]} 53... Bh7 {[%clk
0:00:05.5]} 54. Bf6 {[%clk 0:00:03.3]} 54... Kd5 {[%clk 0:00:06.2]} 55. g8=Q+
{[%clk 0:00:02.2]} 55... Bxg8 {[%clk 0:00:05.4]} 56. Kxd3 {[%clk 0:00:03.1]}
56... Ke6 {[%clk 0:00:04.1]} 57. Ba1 {[%clk 0:00:02.5]} 57... a2 {[%clk
0:00:05]} 58. Kc3 {[%clk 0:00:03]} 58... Kf5 {[%clk 0:00:05.5]} 59. Kb2 {[%clk
0:00:03.7]} 59... Bh7 {[%clk 0:00:06.4]} 60. Kc1 {[%clk 0:00:04.4]} 60... Bg6
{[%clk 0:00:06.5]} 61. Bc3 {[%clk 0:00:05.3]} 61... Bh7 {[%clk 0:00:07]} 62. Kb2
{[%clk 0:00:06.2]} 62... Bg6 {[%clk 0:00:07.9]} 63. Ka1 {[%clk 0:00:06.9]} 63...
Bh7 {[%clk 0:00:08.4]} 64. Bb2 {[%clk 0:00:07.8]} 64... Bg6 {[%clk 0:00:09.3]}
65. Bc3 {[%clk 0:00:08.6]} 65... Bh7 {[%clk 0:00:10.2]} 66. Bb2 {[%clk
0:00:09.4]} 66... Bg6 {[%clk 0:00:11.1]} 67. Bc3 {[%clk 0:00:10.2]} 1/2-1/2

[Event "*** Titled Tuesday Blitz"]
[Site "Chess.com"]
[Date "2020.11.10"]
[Round "6"]
[White "RD4ever"]
[Black "Vuk2000"]
[Result "0-1"]
[WhiteElo "2816"]
[BlackElo "2689"]
[TimeControl "180+1"]
[EndTime "11:10:58 PST"]
[Termination "Vuk2000 won by checkmate"]

1. e4 {[%clk 0:03:00.9]} 1... e6 {[%clk 0:03:00.1]} 2. d4 {[%clk 0:02:59.7]}
2... d5 {[%clk 0:02:59.1]} 3. Bd3 {[%clk 0:03:00.4]} 3... c5 {[%clk 0:02:53.5]}
4. exd5 {[%clk 0:02:59.3]} 4... Qxd5 {[%clk 0:02:49.2]} 5. Nc3 {[%clk
0:02:58.5]} 5... Qd8 {[%clk 0:02:41]} 6. d5 {[%clk 0:02:44.9]} 6... exd5 {[%clk
0:02:35.5]} 7. Nxd5 {[%clk 0:02:45.8]} 7... Nc6 {[%clk 0:02:35.9]} 8. Qe2+
{[%clk 0:02:34.9]} 8... Nge7 {[%clk 0:02:09.6]} 9. Nc3 {[%clk 0:02:20.5]} 9...
Nd4 {[%clk 0:02:03.4]} 10. Qe3 {[%clk 0:01:44.3]} 10... Be6 {[%clk 0:01:22.3]}
11. Nge2 {[%clk 0:01:26.6]} 11... Nef5 {[%clk 0:01:21.7]} 12. Qe4 {[%clk
0:01:19.3]} 12... c4 {[%clk 0:00:50.6]} 13. Bxc4 {[%clk 0:01:10.5]} 13... Nxe2
{[%clk 0:00:37.5]} 14. Bxe6 {[%clk 0:00:58]} 14... Nxc3 {[%clk 0:00:36]} 15.
Bxf7+ {[%clk 0:00:57]} 15... Kxf7 {[%clk 0:00:35.9]} 16. Qxf5+ {[%clk
0:00:57.3]} 16... Qf6 {[%clk 0:00:34.6]} 17. Qxf6+ {[%clk 0:00:54.7]} 17... gxf6
{[%clk 0:00:34.8]} 18. bxc3 {[%clk 0:00:55.6]} 18... Rc8 {[%clk 0:00:35]} 19.
Rb1 {[%clk 0:00:49.1]} 19... b6 {[%clk 0:00:33.4]} 20. Rb3 {[%clk 0:00:49.3]}
20... Bd6 {[%clk 0:00:32.8]} 21. Be3 {[%clk 0:00:40.3]} 21... Be5 {[%clk
0:00:28.2]} 22. Ke2 {[%clk 0:00:40]} 22... Bxc3 {[%clk 0:00:28]} 23. Rd1 {[%clk
0:00:39.9]} 23... Be5 {[%clk 0:00:23.9]} 24. Rd7+ {[%clk 0:00:36.3]} 24... Kg6
{[%clk 0:00:24]} 25. Rxa7 {[%clk 0:00:35.4]} 25... Rxc2+ {[%clk 0:00:24]} 26.
Kf3 {[%clk 0:00:36.1]} 26... h5 {[%clk 0:00:20.1]} 27. Rxb6 {[%clk 0:00:33.9]}
27... Bxh2 {[%clk 0:00:15.7]} 28. g3 {[%clk 0:00:31.9]} 28... h4 {[%clk
0:00:15.2]} 29. Bd4 {[%clk 0:00:27.9]} 29... Rf8 {[%clk 0:00:14.9]} 30. gxh4
{[%clk 0:00:27.9]} 30... Rc4 {[%clk 0:00:13.3]} 31. Rd7 {[%clk 0:00:27.2]} 31...
Bc7 {[%clk 0:00:10]} 32. Ra6 {[%clk 0:00:23.1]} 32... Kf5 {[%clk 0:00:06.8]} 33.
Rd5+ {[%clk 0:00:21.8]} 33... Be5 {[%clk 0:00:06.5]} 34. Raa5 {[%clk 0:00:18.4]}
34... Re8 {[%clk 0:00:03.3]} 35. h5 {[%clk 0:00:15.3]} 35... Rc1 {[%clk
0:00:03.1]} 36. Be3 {[%clk 0:00:15.3]} 36... Rh1 {[%clk 0:00:02.8]} 37. Kg2
{[%clk 0:00:15.3]} 37... Rh4 {[%clk 0:00:02.5]} 38. h6 {[%clk 0:00:15.1]} 38...
Rg8+ {[%clk 0:00:03.1]} 39. Kf3 {[%clk 0:00:15]} 39... Rh3+ {[%clk 0:00:03.7]}
40. Ke2 {[%clk 0:00:15.2]} 40... Ke4 {[%clk 0:00:04.2]} 41. Rdb5 {[%clk
0:00:14.5]} 41... Rg2 {[%clk 0:00:04.6]} 42. Ra4+ {[%clk 0:00:14.6]} 42... Kf5
{[%clk 0:00:05.3]} 43. Rf4+ {[%clk 0:00:14.7]} 43... Ke6 {[%clk 0:00:05.3]} 44.
Rf3 {[%clk 0:00:15.2]} 44... Rhh2 {[%clk 0:00:04.6]} 45. a4 {[%clk 0:00:15.4]}
45... Rg4 {[%clk 0:00:04.9]} 46. a5 {[%clk 0:00:15.5]} 46... Ra4 {[%clk
0:00:05.6]} 47. Rb6+ {[%clk 0:00:15.7]} 47... Kd5 {[%clk 0:00:06.2]} 48. a6
{[%clk 0:00:16.1]} 48... Ke4 {[%clk 0:00:06.1]} 49. Rfxf6 {[%clk 0:00:05.2]}
49... Ra2+ {[%clk 0:00:05.2]} 50. Bd2 {[%clk 0:00:05.5]} 50... Bxf6 {[%clk
0:00:03.5]} 51. Rxf6 {[%clk 0:00:06.4]} 51... Rh5 {[%clk 0:00:04.1]} 52. f3+
{[%clk 0:00:06.3]} 52... Ke5 {[%clk 0:00:04.3]} 53. Rb6 {[%clk 0:00:06.6]} 53...
Rh2+ {[%clk 0:00:04.9]} 54. Ke3 {[%clk 0:00:06.4]} 54... Raxd2 {[%clk
0:00:05.4]} 55. f4+ {[%clk 0:00:06.4]} 55... Kf5 {[%clk 0:00:05.7]} 56. Rb5+
{[%clk 0:00:06.9]} 56... Kf6 {[%clk 0:00:05.8]} 57. Rb6+ {[%clk 0:00:07.6]}
57... Kf5 {[%clk 0:00:05.7]} 58. Rb5+ {[%clk 0:00:08]} 58... Ke6 {[%clk
0:00:06.4]} 59. Rb6+ {[%clk 0:00:08.4]} 59... Kd5 {[%clk 0:00:06.8]} 60. a7
{[%clk 0:00:07.4]} 60... Ra2 {[%clk 0:00:07.1]} 61. Rb7 {[%clk 0:00:07]} 61...
Rh3# {[%clk 0:00:07.2]} 0-1